lending/lending_fUSD_20250122
["ID","MTS","AMOUNT","RATE_DAILY","PERIOD"]
[350030153,1737581434112,-691.16,0.00019726,2]
[350030154,1737581434122,-1387.14,0.00019726,2]
[350030155,1737581434131,-554.87,0.00019726,2]
[350030156,1737581434140,-2007.47,0.00019726,2]
[350030157,1737581434150,-500.0,0.00019726,2]
[350030158,1737581434159,-1341.75,0.00019726,2]
[350030159,1737581434168,-1354.36,0.00019726,2]
[350030160,1737581434178,-2971.08,0.00019726,2]
[350030161,1737581434189,-1742.09,0.00019726,2]
[350030162,1737581434199,-1119.73,0.00019726,2]
[350030163,1737581434208,-500.0,0.00019726,2]
[350030164,1737581434218,-1204.65,0.00019726,2]
[350030165,1737581434227,-650.44,0.00019726,2]
[350030166,1737581434236,-500.0,0.00019726,2]
[350030167,1737581434245,-614.98,0.00019726,2]
[350030168,1737581434255,-2317.06,0.00019726,2]
[350030169,1737581434264,-973.62,0.00019726,2]
[350030170,1737581434274,-1928.25,0.00019726,2]
[350030171,1737581434283,-2400.8,0.00019726,2]
[350030172,1737581434292,-500.0,0.00019726,2]
[350030173,1737581434302,-717.59,0.00019726,2]
[350030174,1737581434311,-500.0,0.00019726,2]
[350030175,1737581434320,-573.1,0.00019726,2]
[350030176,1737581434330,-956.11,0.00019726,2]
[350030177,1737581434339,-1303.18,0.00019726,2]
[350030178,1737581434349,-2308.39,0.00019726,2]
[350030179,1737581434359,-500.0,0.00019726,2]
[350030180,1737581434368,-2741.8,0.00019726,2]
[350030181,1737581434378,-500.0,0.00019726,2]
[350030182,1737581434387,-500.0,0.00019726,2]
[350030183,1737581434396,-896.3,0.00019726,2]
[350030184,1737581434405,-500.0,0.00019726,2]
[350030185,1737581434414,-500.0,0.00019726,2]
[350030186,1737581434424,-815.95,0.00019726,2]
[350030187,1737581434434,-500.0,0.00019726,2]
[350030188,1737581434443,-2716.11,0.00019726,2]
[350030189,1737581434452,-500.0,0.00019726,2]
[350030190,1737581434462,-201.70770015,0.00019757,2]
[350030191,1737581434473,-501.41216421,0.0001976,2]
[350030192,1737581434483,-500.0,0.0001976,2]
[350030193,1737581434492,-250.0,0.00019866,2]
[350030194,1737581434502,-150.0,0.0001989,2]
[350030195,1737581434512,-201.70770015,0.000199,2]
[350030196,1737581434521,-1055.64,0.00019904,2]
[350030197,1737581434531,-670.23,0.00019947,2]
[350030198,1737581434540,-362.46,0.00019978,2]
[350030199,1737581434550,-20480.48,0.0002,3]
[350030200,1737581434559,-1881.2426393,0.0002,14]
[350030201,1737581434568,-500.0,0.0002,2]
[350030202,1737581434577,-1560.31,0.0002,2]
[350030203,1737581434587,-693.428498,0.0002,2]
[350030204,1737581434596,-940.58,0.0002,2]
[350030205,1737581434605,-1100.0,0.0002,12]
[350030206,1737581434615,-557.66,0.0002,2]
[350030207,1737581434624,-1994.51,0.0002,2]
[350030208,1737581434772,-500.0,0.0002,2]
[350030209,1737581434781,-500.0,0.0002,2]
[350030210,1737581434790,-500.0,0.0002,2]
[350030211,1737581434799,-1283.03,0.0002,2]
[350030212,1737581434808,-500.0,0.0002,2]
[350030213,1737581434818,-558.645739,0.0002,2]
[350030214,1737581434827,-2184.27814788,0.0002,4]
[350030215,1737581434836,-802.43,0.0002,2]
[350030216,1737581434845,-651.86,0.0002,2]
[350030217,1737581434854,-942.87,0.0002,2]
[350030218,1737581434863,-919.83,0.0002,2]
[350030219,1737581434872,-1962.42,0.0002,2]
[350030220,1737581434881,-500.0,0.0002,2]
[350030221,1737581434890,-1605.64,0.0002,2]
[350030222,1737581434899,-636.16,0.0002,2]
[350030223,1737581434908,-691.16,0.0002,2]
[350030224,1737581434917,-1387.14,0.0002,2]
[350030225,1737581434926,-554.87,0.0002,2]
[350030226,1737581434934,-813.73188393,0.0002,2]
[350030227,1737581434943,-2007.47,0.0002,2]
[350030228,1737581434952,-500.0,0.0002,2]
[350030229,1737581434962,-1341.75,0.0002,2]
[350030230,1737581434971,-1354.36,0.0002,2]
[350030231,1737581434980,-2971.08,0.0002,2]
[350030232,1737581434989,-1742.09,0.0002,2]
[350030233,1737581434998,-1119.73,0.0002,2]
[350030234,1737581435007,-1204.65,0.0002,2]
[350030235,1737581435017,-650.44,0.0002,2]
[350030236,1737581435025,-500.0,0.0002,2]
[350030237,1737581435034,-614.98,0.0002,2]
[350030238,1737581435044,-2317.06,0.0002,2]
[350030239,1737581435053,-973.62,0.0002,2]
[350030240,1737581435061,-1928.25,0.0002,2]
[350030241,1737581435070,-2400.8,0.0002,2]
[350030242,1737581435079,-500.0,0.0002,2]
[350030243,1737581435097,-717.59,0.0002,2]
[350030244,1737581435110,-500.0,0.0002,2]
[350030245,1737581435120,-573.1,0.0002,2]
[350030246,1737581435130,-956.11,0.0002,2]
[350030247,1737581435142,-1303.18,0.0002,2]
[350030248,1737581435152,-2308.39,0.0002,2]
[350030249,1737581435162,-500.0,0.0002,2]
[350030250,1737581435173,-2741.8,0.0002,2]
[350030251,1737581435182,-500.0,0.0002,2]
[350030252,1737581435192,-500.0,0.0002,2]
[350030253,1737581435201,-896.3,0.0002,2]
[350030254,1737581435211,-500.0,0.0002,2]
[350030255,1737581435220,-500.0,0.0002,2]
[350030256,1737581435230,-815.95,0.0002,2]
[350030257,1737581435239,-500.0,0.0002,2]
[350030258,1737581435249,-500.0,0.0002,2]
[350030259,1737581435259,-2716.11,0.0002,2]
[350030260,1737581435269,-200.0,0.00020002,2]
[350030261,1737581435279,-201.70770015,0.00020043,2]
[350030262,1737581435289,-170.4,0.00020086,2]
[350030263,1737581435299,-1429.22,0.00020106,2]
[350030264,1737581435308,-326.90520789,0.00020118,2]
[350030265,1737581435318,-6271.49992038,0.00020133,2]
[350030266,1737581435328,-150.99,0.00020145,2]
[350030267,1737581435337,-1000.0,0.00020151,2]
[350030268,1737581435346,-201.70770015,0.00020186,2]
[350030269,1737581435356,-1132.12,0.00020209,2]
[350030270,1737581435365,-500.0,0.00020273,2]
[350030271,1737581435375,-1560.31,0.00020273,2]
[350030272,1737581435384,-693.428498,0.00020273,2]
[350030273,1737581435394,-940.58,0.00020273,2]
[350030274,1737581435403,-557.66,0.00020273,2]
[350030275,1737581435413,-1994.51,0.00020273,2]
[350030276,1737581435423,-500.0,0.00020273,2]
[350030277,1737581435432,-500.0,0.00020273,2]
[350030278,1737581435441,-500.0,0.00020273,2]
[350030279,1737581435451,-1283.03,0.00020273,2]
[350030280,1737581435461,-500.0,0.00020273,2]
[350030281,1737581435470,-558.645739,0.00020273,2]
[350030282,1737581435481,-802.43,0.00020273,2]
[350030283,1737581435491,-651.86,0.00020273,2]
[350030284,1737581435500,-942.87,0.00020273,2]
[350030285,1737581435509,-919.83,0.00020273,2]
[350030286,1737581435519,-1962.42,0.00020273,2]
[350030287,1737581435528,-1605.64,0.00020273,2]
[350030288,1737581435538,-636.16,0.00020273,2]
[350030289,1737581435547,-691.16,0.00020273,2]
[350030290,1737581435556,-1387.14,0.00020273,2]
[350030291,1737581435566,-554.87,0.00020273,2]
[350030292,1737581435576,-2007.47,0.00020273,2]
[350030293,1737581435586,-500.0,0.00020273,2]
[350030294,1737581435596,-1341.75,0.00020273,2]
[350030295,1737581435605,-1354.36,0.00020273,2]
[350030296,1737581435615,-2971.08,0.00020273,2]
[350030297,1737581435625,-1742.09,0.00020273,2]
[350030298,1737581435636,-1119.73,0.00020273,2]
[350030299,1737581435646,-1204.65,0.00020273,2]
[350030300,1737581435656,-650.44,0.00020273,2]
[350030301,1737581435666,-500.0,0.00020273,2]
[350030302,1737581435676,-614.98,0.00020273,2]
[350030303,1737581435686,-2317.06,0.00020273,2]
[350030304,1737581435696,-973.62,0.00020273,2]
[350030305,1737581435706,-1928.25,0.00020273,2]
[350030306,1737581435716,-2400.8,0.00020273,2]
[350030307,1737581435725,-500.0,0.00020273,2]
[350030308,1737581435735,-717.59,0.00020273,2]
[350030309,1737581435744,-500.0,0.00020273,2]
[350030310,1737581435754,-573.1,0.00020273,2]
[350030311,1737581435763,-956.11,0.00020273,2]
[350030312,1737581435773,-1303.18,0.00020273,2]
[350030313,1737581435783,-2308.39,0.00020273,2]
[350030314,1737581435792,-500.0,0.00020273,2]
[350030315,1737581435802,-2741.8,0.00020273,2]
[350030316,1737581435812,-500.0,0.00020273,2]
[350030317,1737581435821,-500.0,0.00020273,2]
[350030318,1737581435831,-896.3,0.00020273,2]
[350030319,1737581435840,-500.0,0.00020273,2]
[350030320,1737581435849,-500.0,0.00020273,2]
[350030321,1737581435858,-815.95,0.00020273,2]
[350030322,1737581435867,-500.0,0.00020273,2]
[350030323,1737581435877,-2716.11,0.00020273,2]
[350030324,1737581435886,-150.0,0.00020277,2]
[350030325,1737581435896,-166.5,0.00020286,2]
[350030326,1737581435906,-500.0,0.00020308,2]
[350030327,1737581435915,-201.70770015,0.00020329,2]
[350030328,1737581435924,-150.0,0.00020353,2]
[350030329,1737581435933,-590.33,0.00020419,2]
[350030330,1737581435943,-150.0,0.00020441,2]
[350030331,1737581435952,-201.70770015,0.00020471,2]
[350030332,1737581435963,-150.0,0.00020482,2]
[350030333,1737581435972,-269.14504868,0.00020506,2]
[350030334,1737581435982,-172.44,0.00020513,2]
[350030335,1737581435991,-150.0,0.00020539,2]
[350030336,1737581436001,-500.0,0.00020547,2]
[350030337,1737581436011,-1560.31,0.00020547,2]
[350030338,1737581436020,-693.428498,0.00020547,2]
[350030339,1737581436029,-940.58,0.00020547,2]
[350030340,1737581436038,-557.66,0.00020547,2]
[350030341,1737581436048,-1994.51,0.00020547,2]
[350030342,1737581436057,-500.0,0.00020547,2]
[350030343,1737581436067,-500.0,0.00020547,2]
[350030344,1737581436076,-500.0,0.00020547,2]
[350030345,1737581436086,-1283.03,0.00020547,2]
[350030346,1737581436096,-500.0,0.00020547,2]
[350030347,1737581436109,-558.645739,0.00020547,2]
[350030348,1737581436119,-802.43,0.00020547,2]
[350030349,1737581436127,-651.86,0.00020547,2]
[350030350,1737581436137,-942.87,0.00020547,2]
[350030351,1737581436147,-919.83,0.00020547,2]
[350030352,1737581436156,-1962.42,0.00020547,2]
[350030353,1737581436166,-1605.64,0.00020547,2]
[350030354,1737581436176,-636.16,0.00020547,2]
[350030355,1737581436188,-691.16,0.00020547,2]
[350030356,1737581436198,-1387.14,0.00020547,2]
[350030357,1737581436208,-554.87,0.00020547,2]
[350030358,1737581436218,-500.0,0.00020547,2]
[350030359,1737581436227,-2007.47,0.00020547,2]
[350030360,1737581436236,-1341.75,0.00020547,2]
[350030361,1737581436246,-1354.36,0.00020547,2]
[350030362,1737581436255,-2971.08,0.00020547,2]
[350030363,1737581436265,-1742.09,0.00020547,2]
[350030364,1737581436274,-1119.73,0.00020547,2]
[350030365,1737581436284,-1204.65,0.00020547,2]
[350030366,1737581436293,-650.44,0.00020547,2]
[350030367,1737581436303,-500.0,0.00020547,2]
[350030368,1737581436312,-614.98,0.00020547,2]
[350030369,1737581436321,-2317.06,0.00020547,2]
[350030370,1737581436331,-973.62,0.00020547,2]
[350030371,1737581436340,-1928.25,0.00020547,2]
[350030372,1737581436349,-500.0,0.00020547,2]
[350030373,1737581436359,-2400.8,0.00020547,2]
[350030374,1737581436368,-717.59,0.00020547,2]
[350030375,1737581436378,-500.0,0.00020547,2]
[350030376,1737581436387,-573.1,0.00020547,2]
[350030377,1737581436397,-956.11,0.00020547,2]
[350030378,1737581436406,-1303.18,0.00020547,2]
[350030379,1737581436415,-2308.39,0.00020547,2]
[350030380,1737581436425,-500.0,0.00020547,2]
[350030381,1737581436434,-2741.8,0.00020547,2]
[350030382,1737581436443,-500.0,0.00020547,2]
[350030383,1737581436453,-458.9858215,0.00020547,2]
[350030384,1737581436463,-896.3,0.00020547,2]
[350030385,1737581436472,-619.90093699,0.00020547,2]
[350030386,1737581436481,-500.0,0.00020547,2]
[350030387,1737581436491,-815.95,0.00020547,2]
[350030388,1737581436500,-500.0,0.00020547,2]
[350030389,1737581436510,-2716.11,0.00020547,2]
[350030390,1737581436519,-150.0,0.00020599,2]
[350030391,1737581436529,-150.0,0.00020601,2]
[350030392,1737581436538,-201.70770015,0.00020614,2]
[350030393,1737581436548,-150.0,0.00020624,2]
[350030394,1737581436558,-150.0,0.00020643,2]
[350030395,1737581436567,-150.0,0.00020674,2]
[350030396,1737581436577,-326.90520789,0.00020712,2]
[350030397,1737581436587,-6271.49992038,0.00020722,2]
[350030398,1737581436596,-500.0,0.0002074,2]
[350030399,1737581436605,-500.0,0.0002074,2]
[350030400,1737581436614,-150.0,0.00020745,2]
[350030402,1737581436624,-201.70770015,0.00020757,2]
[350030403,1737581436633,-3566.385,0.00020767,2]
[350030404,1737581436643,-150.0,0.00020768,2]
[350030405,1737581436652,-200.0,0.00020784,2]
[350030406,1737581436662,-644.32072769,0.00020796,2]
[350030407,1737581436672,-300.0,0.000208,7]
[350030408,1737581436681,-200.0,0.000208,2]
[350030410,1737581436691,-150.0,0.00020816,2]
[350030412,1737581436700,-150.0,0.00020818,2]
[350030414,1737581436710,-500.0,0.00020821,2]
[350030416,1737581436721,-1560.31,0.00020821,2]
[350030417,1737581436730,-693.428498,0.00020821,2]
[350030418,1737581436741,-940.58,0.00020821,2]
[350030419,1737581436751,-557.66,0.00020821,2]
[350030420,1737581436760,-1994.51,0.00020821,2]
[350030421,1737581436769,-500.0,0.00020821,2]
[350030422,1737581436779,-500.0,0.00020821,2]
[350030423,1737581436788,-1283.03,0.00020821,2]
[350030424,1737581436798,-500.0,0.00020821,2]
[350030425,1737581436807,-558.645739,0.00020821,2]
[350030426,1737581436816,-802.43,0.00020821,2]
[350030427,1737581436826,-651.86,0.00020821,2]
[350030428,1737581436835,-942.87,0.00020821,2]
[350030429,1737581436844,-919.83,0.00020821,2]
[350030430,1737581436854,-1962.42,0.00020821,2]
[350030431,1737581436863,-1605.64,0.00020821,2]
[350030432,1737581436872,-636.16,0.00020821,2]
[350030433,1737581436881,-691.16,0.00020821,2]
[350030434,1737581436891,-1387.14,0.00020821,2]
[350030435,1737581436900,-554.87,0.00020821,2]
[350030436,1737581436909,-500.0,0.00020821,2]
[350030437,1737581436918,-2007.47,0.00020821,2]
[350030438,1737581436927,-1341.75,0.00020821,2]
[350030439,1737581436937,-1354.36,0.00020821,2]
[350030440,1737581436946,-2971.08,0.00020821,2]
[350030441,1737581436955,-1742.09,0.00020821,2]
[350030442,1737581436965,-1119.73,0.00020821,2]
[350030443,1737581436975,-1204.65,0.00020821,2]
[350030444,1737581436984,-650.44,0.00020821,2]
[350030445,1737581436993,-230.13,0.00020821,2]
[350030446,1737581437002,-614.98,0.00020821,2]
[350030447,1737581437013,-2317.06,0.00020821,2]
[350030448,1737581437022,-973.62,0.00020821,2]
[350030449,1737581437031,-1928.25,0.00020821,2]
[350030450,1737581437041,-500.0,0.00020821,2]
[350030451,1737581437050,-2400.8,0.00020821,2]
[350030452,1737581437060,-717.59,0.00020821,2]
[350030453,1737581437070,-500.0,0.00020821,2]
[350030454,1737581437079,-573.1,0.00020821,2]
[350030455,1737581437088,-956.11,0.00020821,2]
[350030456,1737581437102,-1303.18,0.00020821,2]
[350030457,1737581437111,-2308.39,0.00020821,2]
[350030458,1737581437121,-500.0,0.00020821,2]
[350030459,1737581437130,-2741.8,0.00020821,2]
[350030460,1737581437141,-500.0,0.00020821,2]
[350030461,1737581437150,-896.3,0.00020821,2]
[350030462,1737581437159,-440.68,0.00020821,2]
[350030463,1737581437169,-815.95,0.00020821,2]
[350030464,1737581437179,-500.0,0.00020821,2]
[350030465,1737581437188,-2716.11,0.00020821,2]
[350030466,1737581437198,-644.32072769,0.00020821,2]
[350030467,1737581437207,-200.0,0.00020851,2]
[350030468,1737581437218,-150.0,0.00020857,2]
[350030469,1737581437228,-644.32072769,0.00020866,2]
[350030470,1737581437237,-644.32072769,0.00020867,2]
[350030471,1737581437246,-200.0,0.00020871,2]
[350030472,1737581437256,-200.0,0.00020877,2]
[350030473,1737581437266,-150.0,0.00020889,2]
[350030474,1737581437275,-200.0,0.00020897,2]
[350030475,1737581437284,-600.0,0.000209,7]
[350030476,1737581437293,-201.70770015,0.000209,2]
[350030477,1737581437303,-177.3,0.00020904,2]
[350030478,1737581437312,-200.0,0.00020915,2]
[350030479,1737581437321,-644.32072769,0.00020921,2]
[350030480,1737581437330,-362.46,0.00020929,2]
[350030481,1737581437339,-150.0,0.00020957,2]
[350030482,1737581437348,-150.0,0.00020973,2]
[350030483,1737581437357,-150.0,0.00020975,2]
[350030484,1737581437366,-150.0,0.00020976,2]
[350030485,1737581437375,-166.5,0.00020985,2]
[350030486,1737581437384,-102259.48172887,0.00021,2]
[350030487,1737581437393,-150.0,0.00021006,2]
[350030488,1737581437403,-772.56,0.00021041,2]
[350030489,1737581437412,-201.70770015,0.00021043,2]
[350030490,1737581437421,-150.0,0.0002105,2]
[350030491,1737581437430,-150.0,0.00021077,2]
[350030492,1737581437439,-500.0,0.00021095,2]
[350030493,1737581437448,-1560.31,0.00021095,2]
[350030494,1737581437457,-693.428498,0.00021095,2]
[350030495,1737581437468,-940.58,0.00021095,2]
[350030496,1737581437477,-557.66,0.00021095,2]
[350030497,1737581437486,-1994.51,0.00021095,2]
[350030498,1737581437495,-500.0,0.00021095,2]
[350030499,1737581437504,-500.0,0.00021095,2]
[350030500,1737581437514,-1283.03,0.00021095,2]
[350030501,1737581437523,-500.0,0.00021095,2]
[350030502,1737581437532,-558.645739,0.00021095,2]
[350030503,1737581437541,-802.43,0.00021095,2]
[350030504,1737581437551,-651.86,0.00021095,2]
[350030505,1737581437559,-942.87,0.00021095,2]
[350030506,1737581437569,-919.83,0.00021095,2]
[350030507,1737581437578,-1962.42,0.00021095,2]
[350030508,1737581437587,-1605.64,0.00021095,2]
[350030509,1737581437596,-636.16,0.00021095,2]
[350030510,1737581437606,-691.16,0.00021095,2]
[350030511,1737581437615,-1387.14,0.00021095,2]
[350030512,1737581437625,-554.87,0.00021095,2]
[350030513,1737581437635,-500.0,0.00021095,2]
[350030514,1737581437646,-2007.47,0.00021095,2]
[350030515,1737581437655,-1341.75,0.00021095,2]
[350030517,1737581437806,-1354.36,0.00021095,2]
[350030518,1737581437815,-2971.08,0.00021095,2]
[350030519,1737581437827,-1742.09,0.00021095,2]
[350030520,1737581437838,-1119.73,0.00021095,2]
[350030521,1737581437847,-1204.65,0.00021095,2]
[350030522,1737581437856,-650.44,0.00021095,2]
[350030523,1737581437865,-614.98,0.00021095,2]
[350030524,1737581437875,-2317.06,0.00021095,2]
[350030525,1737581437884,-973.62,0.00021095,2]
[350030526,1737581437893,-1928.25,0.00021095,2]
[350030527,1737581437902,-508.53,0.00021095,2]
[350030528,1737581437911,-2400.8,0.00021095,2]
[350030529,1737581437919,-717.59,0.00021095,2]
[350030530,1737581437929,-500.0,0.00021095,2]
[350030531,1737581437938,-573.1,0.00021095,2]
[350030532,1737581437947,-956.11,0.00021095,2]
[350030533,1737581437957,-1303.18,0.00021095,2]
[350030534,1737581437967,-2308.39,0.00021095,2]
[350030535,1737581437976,-500.0,0.00021095,2]
[350030536,1737581437986,-2741.8,0.00021095,2]
[350030537,1737581437995,-500.0,0.00021095,2]
[350030538,1737581438004,-896.3,0.00021095,2]
[350030539,1737581438014,-815.95,0.00021095,2]
[350030540,1737581438023,-500.0,0.00021095,2]
[350030541,1737581438032,-2716.11,0.00021095,2]
[350030542,1737581438042,-150.0,0.00021097,2]
[350030543,1737581438052,-1000.0,0.000211,7]
[350030544,1737581438062,-150.0,0.00021171,2]
[350030545,1737581438071,-150.0,0.00021176,2]
[350030546,1737581438081,-1000.0,0.00021183,2]
[350030547,1737581438090,-17405.66258081,0.00021184,2]
[350030548,1737581438100,-500.0,0.00021184,2]
[350030549,1737581438112,-500.0,0.00021184,2]
[350030550,1737581438121,-500.0,0.00021184,2]
[350030551,1737581438131,-500.0,0.00021184,2]
[350030552,1737581438140,-500.0,0.00021184,2]
[350030553,1737581438150,-500.0,0.00021184,2]
[350030554,1737581438159,-500.0,0.00021184,2]
[350030555,1737581438168,-309.60589867,0.00021184,2]
[350030556,1737581438179,-500.0,0.00021184,2]
[350030557,1737581438189,-500.0,0.00021184,2]
[350030558,1737581438198,-500.0,0.00021184,2]
[350030559,1737581438208,-500.0,0.00021184,2]
[350030560,1737581438219,-500.0,0.00021184,2]
[350030561,1737581438228,-500.0,0.00021184,2]
[350030562,1737581438238,-500.0,0.00021184,2]
[350030563,1737581438247,-500.0,0.00021184,2]
[350030564,1737581438259,-500.0,0.00021184,2]
[350030565,1737581438269,-500.0,0.00021184,2]
[350030566,1737581438284,-500.0,0.00021184,2]
[350030567,1737581438303,-500.0,0.00021184,2]
[350030568,1737581438315,-500.0,0.00021184,2]
[350030569,1737581438325,-500.0,0.00021184,2]
[350030571,1737581438334,-500.0,0.00021184,2]
[350030573,1737581438343,-500.0,0.00021184,2]
[350030575,1737581438353,-547.57,0.00021184,2]
[350030577,1737581438362,-500.0,0.00021184,2]
[350030579,1737581438371,-500.0,0.00021184,2]
[350030581,1737581438382,-500.0,0.00021184,2]
[350030582,1737581438391,-500.0,0.00021184,2]
[350030584,1737581438401,-500.0,0.00021184,2]
[350030585,1737581438410,-500.0,0.00021184,2]
[350030586,1737581438419,-500.0,0.00021184,2]
[350030587,1737581438428,-500.0,0.00021184,2]
[350030588,1737581438437,-500.0,0.00021184,2]
[350030589,1737581438446,-500.0,0.00021184,2]
[350030590,1737581438456,-500.0,0.00021184,2]
[350030591,1737581438466,-641.03904466,0.00021184,2]
[350030592,1737581438475,-500.0,0.00021184,2]
[350030593,1737581438484,-500.0,0.00021184,2]
[350030594,1737581438493,-500.0,0.00021184,2]
[350030595,1737581438503,-500.0,0.00021184,2]
[350030596,1737581438513,-516.21243224,0.00021184,2]
[350030597,1737581438522,-500.0,0.00021184,2]
[350030598,1737581438531,-500.0,0.00021184,2]
[350030599,1737581438540,-500.0,0.00021184,2]
[350030600,1737581438549,-500.0,0.00021184,2]
[350030601,1737581438559,-150.0,0.00021184,2]
[350030602,1737581438568,-500.0,0.00021184,2]
[350030603,1737581438578,-500.0,0.00021184,2]
[350030604,1737581438587,-500.0,0.00021184,2]
[350030605,1737581438597,-500.0,0.00021184,2]
[350030606,1737581438606,-500.0,0.00021184,2]
[350030607,1737581438616,-500.0,0.00021184,2]
[350030608,1737581438625,-500.0,0.00021184,2]
[350030609,1737581438635,-500.0,0.00021184,2]
[350030610,1737581438646,-500.0,0.00021184,2]
[350030611,1737581438656,-500.0,0.00021184,2]
[350030612,1737581438667,-500.0,0.00021184,2]
[350030613,1737581438678,-500.0,0.00021184,2]
[350030614,1737581438687,-500.0,0.00021184,2]
[350030615,1737581438696,-500.0,0.00021184,2]
[350030616,1737581438705,-500.0,0.00021184,2]
[350030617,1737581438714,-763.2,0.00021184,2]
[350030618,1737581438723,-500.0,0.00021184,2]
[350030619,1737581438732,-500.0,0.00021184,2]
[350030620,1737581438741,-500.0,0.00021184,2]
[350030621,1737581438751,-500.0,0.00021184,2]
[350030622,1737581438762,-500.0,0.00021184,2]
[350030623,1737581438772,-500.0,0.00021184,2]
[350030624,1737581438780,-2915.1629,0.00021184,2]
[350030625,1737581438789,-182.85490265,0.00021184,2]
[350030626,1737581438799,-2025.7796,0.00021184,2]
[350030627,1737581438808,-500.0,0.00021185,2]
[350030628,1737581438817,-500.0,0.00021185,2]
[350030629,1737581438827,-500.0,0.00021185,2]
[350030630,1737581438836,-500.0,0.00021185,2]
[350030631,1737581438846,-500.0,0.00021185,2]
[350030632,1737581438855,-500.0,0.00021185,2]
[350030633,1737581438865,-500.0,0.00021185,2]
[350030634,1737581438874,-500.0,0.00021185,2]
[350030635,1737581438883,-566.77,0.00021185,2]
[350030636,1737581438892,-500.0,0.00021185,2]
[350030637,1737581438901,-500.0,0.00021185,2]
[350030638,1737581438911,-500.0,0.00021185,2]
[350030639,1737581438920,-1138.62,0.00021185,2]
[350030640,1737581438929,-500.0,0.00021185,2]
[350030641,1737581438939,-1736.67,0.00021185,2]
[350030642,1737581438948,-1971.68,0.00021185,2]
[350030643,1737581438957,-201.70770015,0.00021186,2]
[350030644,1737581438968,-150.0,0.00021188,2]
[350030645,1737581438977,-150.0,0.00021195,2]
[350030646,1737581438987,-1300.0,0.000212,7]
[350030647,1737581438996,-369.84930889,0.00021226,2]
[350030648,1737581439006,-150.0,0.00021245,2]
[350030649,1737581439014,-150.0,0.00021261,2]
[350030650,1737581439023,-153.43330582,0.00021273,2]
[350030651,1737581439033,-161.94998058,0.00021273,2]
[350030652,1737581439042,-500.0,0.00021273,2]
[350030653,1737581439052,-151.0,0.00021273,2]
[350030654,1737581439061,-466.235353,0.00021273,2]
[350030655,1737581439072,-466.235353,0.00021273,2]
[350030656,1737581439081,-216.34300142,0.00021273,2]
[350030657,1737581439091,-3000.0,0.0002128,2]
[350030658,1737581439105,-500.0,0.00021283,2]
[350030659,1737581439114,-500.0,0.00021283,2]
[350030660,1737581439123,-500.0,0.00021283,2]
[350030661,1737581439132,-500.0,0.00021283,2]
[350030662,1737581439143,-500.0,0.00021283,2]
[350030663,1737581439151,-500.0,0.00021283,2]
[350030664,1737581439161,-500.0,0.00021283,2]
[350030665,1737581439170,-822.89,0.00021283,2]